fUST/lending_fUST_20240721
["ID","MTS","AMOUNT","RATE_DAILY","PERIOD"]
[332806597,1721538640854,-500.0,0.00013698,2]
[332806599,1721538640863,-500.0,0.00013698,2]
[332806601,1721538640872,-502.06907572,0.00013698,2]
[332806603,1721538640881,-500.0,0.00013698,2]
[332806605,1721538640892,-1486.09,0.00013698,2]
[332806607,1721538640902,-500.0,0.00013698,2]
[332806609,1721538640911,-500.0,0.00013698,2]
[332806611,1721538640920,-1191.93,0.00013698,2]
[332806613,1721538640930,-500.0,0.00013698,2]
[332806615,1721538640939,-500.0,0.00013698,2]
[332806616,1721538640949,-500.0,0.00013698,2]
[332806618,1721538640958,-500.0,0.00013698,2]
[332806620,1721538640967,-500.0,0.00013698,2]
[332806622,1721538640976,-500.0,0.00013698,2]
[332806624,1721538640985,-564.09,0.00013698,2]
[332806626,1721538640995,-500.0,0.00013698,2]
[332806628,1721538641003,-500.0,0.00013698,2]
[332806630,1721538641013,-500.0,0.00013698,2]
[332806632,1721538641022,-500.0,0.00013698,2]
[332806634,1721538641031,-1755.58,0.00013698,2]
[332806636,1721538641040,-500.0,0.00013698,2]
[332806638,1721538641050,-500.0,0.00013698,2]
[332806640,1721538641059,-831.67,0.00013698,2]
[332806642,1721538641068,-592.72339652,0.00013698,2]
[332806644,1721538641078,-500.0,0.00013698,2]
[332806646,1721538641086,-500.0,0.00013698,2]
[332806647,1721538641096,-500.0,0.00013698,2]
[332806648,1721538641108,-500.0,0.00013698,2]
[332806649,1721538641117,-500.0,0.00013698,2]
[332806650,1721538641127,-500.0,0.00013698,2]
[332806651,1721538641139,-500.0,0.00013698,2]
[332806652,1721538641148,-500.0,0.00013698,2]
[332806654,1721538641157,-500.0,0.00013698,2]
[332806655,1721538641166,-500.0,0.00013698,2]
[332806657,1721538641175,-1811.52,0.00013698,2]
[332806659,1721538641187,-500.0,0.00013698,2]
[332806661,1721538641197,-500.0,0.00013698,2]
[332806663,1721538641207,-500.0,0.00013698,2]
[332806665,1721538641216,-500.0,0.00013698,2]
[332806666,1721538641225,-500.0,0.00013698,2]
[332806668,1721538641235,-578.55,0.00013698,2]
[332806670,1721538641244,-500.0,0.00013698,2]
[332806671,1721538641254,-500.0,0.00013698,2]
[332806673,1721538641263,-500.0,0.00013698,2]
[332806675,1721538641273,-500.0,0.00013698,2]
[332806677,1721538641283,-500.0,0.00013698,2]
[332806678,1721538641292,-500.0,0.00013698,2]
[332806679,1721538641303,-500.0,0.00013698,2]
[332806680,1721538641312,-500.0,0.00013698,2]
[332806681,1721538641322,-500.0,0.00013698,2]
[332806682,1721538641332,-500.0,0.00013698,2]
[332806683,1721538641341,-500.0,0.00013698,2]
[332806684,1721538641351,-502.58812727,0.00013698,2]
[332806685,1721538641360,-500.0,0.00013698,2]
[332806686,1721538641370,-500.0,0.00013698,2]
[332806687,1721538641379,-614.64,0.00013698,2]
[332806688,1721538641390,-573.74,0.00013698,2]
[332806689,1721538641399,-500.0,0.00013698,2]
[332806690,1721538641409,-500.0,0.00013698,2]
[332806691,1721538641418,-789.16,0.00013698,2]
[332806692,1721538641427,-500.0,0.00013698,2]
[332806693,1721538641437,-500.0,0.00013698,2]
[332806694,1721538641447,-500.0,0.00013698,2]
[332806695,1721538641456,-500.0,0.00013698,2]
[332806696,1721538641465,-500.0,0.00013698,2]
[332806697,1721538641474,-500.0,0.00013698,2]
[332806698,1721538641483,-500.0,0.00013698,2]
[332806699,1721538641492,-500.0,0.00013698,2]
[332806700,1721538641501,-500.0,0.00013698,2]
[332806701,1721538641510,-500.0,0.00013698,2]
[332806702,1721538641519,-501.34951286,0.00013698,2]
[332806703,1721538641529,-513.01851565,0.00013698,2]
[332806704,1721538641538,-646.41911865,0.00013698,2]
[332806705,1721538641548,-850.42,0.00013698,2]
[332806706,1721538641557,-1223.88,0.00013698,2]
[332806707,1721538641567,-500.0,0.00013698,2]
[332806708,1721538641576,-500.0,0.00013698,2]
[332806709,1721538641586,-505.15585525,0.00013698,2]
[332806710,1721538641595,-500.0,0.00013698,2]
[332806711,1721538641604,-504.82506107,0.00013698,2]
[332806712,1721538641613,-500.0,0.00013698,2]
[332806713,1721538641623,-553.50097455,0.00013698,2]
[332806714,1721538641632,-297.39668351,0.00013698,2]
[332806715,1721538641642,-506.8348777,0.00013698,2]
[332806716,1721538641651,-2621.65,0.00013698,2]
[332806717,1721538641661,-500.0,0.00013698,2]
[332806718,1721538641670,-603.13559602,0.00013698,2]
[332806719,1721538641679,-500.0,0.00013698,2]
[332806720,1721538641688,-502.24,0.00013698,2]
[332806721,1721538641698,-500.0,0.00013698,2]
[332806722,1721538641707,-244.92214874,0.00013698,2]
[332806723,1721538641716,-500.0,0.00013698,2]
[332806724,1721538641725,-1693.08,0.00013698,2]
[332806725,1721538641734,-500.0,0.00013698,2]
[332806726,1721538641743,-537.2978861,0.00013698,2]
[332806727,1721538641752,-500.0,0.00013698,2]
[332806728,1721538641762,-504.28120277,0.00013698,2]
[332806729,1721538641771,-500.0,0.00013698,2]
[332806730,1721538641780,-501.05158394,0.00013698,2]
[332806731,1721538641790,-506.40127866,0.00013698,2]
[332806732,1721538641799,-500.0,0.00013698,2]
[332806733,1721538641808,-500.0,0.00013698,2]
[332806734,1721538641818,-500.0,0.00013698,2]
[332806735,1721538641827,-500.0,0.00013698,2]
[332806736,1721538641836,-500.0,0.00013698,2]
[332806737,1721538641845,-500.0,0.00013698,2]
[332806738,1721538641855,-500.0,0.00013698,2]
[332806739,1721538641864,-277.30974389,0.00013698,2]
[332806740,1721538641874,-150.0,0.00013698,2]
[332806741,1721538641883,-500.0,0.00013698,2]
[332806742,1721538641894,-668.01,0.00013698,2]
[332806743,1721538641904,-500.0,0.00013698,2]
[332806744,1721538641914,-503.40087268,0.00013698,2]
[332806745,1721538641924,-500.0,0.00013698,2]
[332806746,1721538641933,-1012.95674876,0.00013698,2]
[332806747,1721538641944,-500.0,0.00013698,2]
[332806748,1721538641953,-500.0,0.00013698,2]
[332806749,1721538641963,-500.0,0.00013698,2]
[332806750,1721538641972,-518.78180993,0.00013698,2]
[332806751,1721538641981,-500.0,0.00013698,2]
[332806752,1721538641990,-500.0,0.00013698,2]
[332806753,1721538642000,-500.0,0.00013698,2]
[332806754,1721538642009,-500.0,0.00013698,2]
[332806755,1721538642018,-500.0,0.00013698,2]
[332806756,1721538642028,-500.0,0.00013698,2]
[332806757,1721538642037,-500.0,0.00013698,2]
[332806758,1721538642225,-500.0,0.00013698,2]
[332806759,1721538642236,-500.0,0.00013698,2]
[332806760,1721538642245,-500.0,0.00013698,2]
[332806761,1721538642255,-500.0,0.00013698,2]
[332806762,1721538642265,-500.0,0.00013698,2]
[332806763,1721538642275,-500.0,0.00013698,2]
[332806764,1721538642286,-500.0,0.00013698,2]
[332806765,1721538642296,-500.0,0.00013698,2]
[332806766,1721538642306,-502.47574919,0.00013698,2]
[332806767,1721538642316,-550.42298283,0.00013698,2]
[332806768,1721538642326,-500.0,0.00013698,2]
[332806769,1721538642336,-511.67133738,0.00013698,2]
[332806770,1721538642347,-500.0,0.00013698,2]
[332806771,1721538642357,-746.29,0.00013698,2]
[332806773,1721538642367,-524.72,0.00013698,2]
[332806775,1721538642379,-500.0,0.00013698,2]
[332806777,1721538642392,-500.0,0.00013698,2]
[332806778,1721538642405,-500.0,0.00013698,2]
[332806779,1721538642417,-506.67046312,0.00013698,2]
[332806781,1721538642426,-500.0,0.00013698,2]
[332806782,1721538642438,-1714.81,0.00013698,2]
[332806783,1721538642448,-500.0,0.00013698,2]
[332806784,1721538642458,-502.72088124,0.00013698,2]
[332806785,1721538642470,-500.0,0.00013698,2]
[332806786,1721538642480,-1962.59,0.00013698,2]
[332806787,1721538642490,-485.26211001,0.00013698,2]
[332806788,1721538642500,-500.0,0.00013698,2]
[332806789,1721538642509,-844.25,0.00013698,2]
[332806790,1721538642519,-500.0,0.00013698,2]
[332806791,1721538642529,-1976.44,0.00013698,2]
[332806792,1721538642538,-500.0,0.00013698,2]
[332806793,1721538642547,-500.0,0.00013698,2]
[332806794,1721538642557,-3609.17,0.00013698,2]
[332806795,1721538642566,-502.2429734,0.00013698,2]
[332806796,1721538642575,-500.0,0.00013698,2]
[332806797,1721538642585,-543.78739897,0.00013698,2]
[332806798,1721538642594,-505.04722869,0.00013698,2]
[332806799,1721538642604,-500.0,0.00013698,2]
[332806800,1721538642613,-617.37745255,0.00013698,2]
[332806801,1721538642622,-500.0,0.00013698,2]
[332806802,1721538642632,-500.0,0.00013698,2]
[332806804,1721538642643,-1247.71,0.00013698,2]
[332806806,1721538642653,-503.5797547,0.00013698,2]
[332806808,1721538642662,-500.0,0.00013698,2]
[332806810,1721538642671,-574.15,0.00013698,2]
[332806811,1721538642680,-525.67,0.00013698,2]
[332806812,1721538642689,-606.59,0.00013698,2]
[332806813,1721538642698,-361.5040045,0.00013698,2]
[332806814,1721538642707,-488.60007628,0.00013698,2]
[332806815,1721538642716,-1554.0,0.00013698,2]
[332806816,1721538642725,-500.0,0.00013698,2]
[332806817,1721538642735,-1624.67,0.00013698,2]
[332806818,1721538642744,-738.99,0.00013698,2]
[332806819,1721538642753,-763.95,0.00013698,2]
[332806820,1721538642763,-500.0,0.00013698,2]
[332806821,1721538642771,-502.00450992,0.00013698,2]
[332806822,1721538642781,-505.92769148,0.00013698,2]
[332806823,1721538642790,-195.08991549,0.00013698,2]
[332806824,1721538642799,-837.58,0.00013698,2]
[332806825,1721538642808,-1097.27,0.00013698,2]
[332806826,1721538642817,-500.0,0.00013698,2]
[332806827,1721538642826,-483.36756744,0.00013698,2]
[332806828,1721538642837,-915.6,0.00013698,2]
[332806829,1721538642848,-505.39149835,0.00013698,2]
[332806830,1721538642857,-500.0,0.00013698,2]
[332806831,1721538642867,-500.0,0.00013698,2]
[332806832,1721538642876,-500.0,0.00013698,2]
[332806833,1721538642888,-273.53253815,0.00013698,2]
[332806834,1721538642899,-500.0,0.00013698,2]
[332806835,1721538642909,-500.0,0.00013698,2]
[332806836,1721538642920,-257.77649434,0.00013698,2]
[332806838,1721538642929,-989.42,0.00013698,2]
[332806839,1721538642938,-580.74,0.00013698,2]
[332806840,1721538642947,-556.1923739,0.00013698,2]
[332806841,1721538642956,-1809.04,0.00013698,2]
[332806842,1721538642966,-500.0,0.00013698,2]
[332806843,1721538642976,-500.0,0.00013698,2]
[332806844,1721538642987,-500.0,0.00013698,2]
[332806845,1721538642998,-500.0,0.00013698,2]
[332806846,1721538643008,-500.0,0.00013698,2]
[332806847,1721538643018,-500.0,0.00013698,2]
[332806848,1721538643027,-500.0,0.00013698,2]
[332806849,1721538643038,-500.0,0.00013698,2]
[332806850,1721538643049,-500.0,0.00013698,2]
[332806851,1721538643060,-502.58801939,0.00013698,2]
[332806852,1721538643071,-526.16960824,0.00013698,2]
[332806853,1721538643082,-544.25,0.00013698,2]
[332806854,1721538643093,-500.0,0.00013698,2]
[332806855,1721538643104,-500.0,0.00013698,2]
[332806856,1721538643116,-500.0,0.00013698,2]
[332806857,1721538643126,-500.0,0.00013698,2]
[332806858,1721538643136,-500.0,0.00013698,2]
[332806859,1721538643146,-628.06,0.00013698,2]
[332806860,1721538643156,-512.099942,0.00013698,2]
[332806861,1721538643167,-500.0,0.00013698,2]
[332806862,1721538643177,-500.0,0.00013698,2]
[332806863,1721538643189,-500.0,0.00013698,2]
[332806864,1721538643200,-1219.61,0.00013698,2]
[332806865,1721538643211,-1125.95,0.00013698,2]
[332806866,1721538643221,-500.0,0.00013698,2]
[332806867,1721538643231,-2570.26,0.00013698,2]
[332806868,1721538643241,-512.099942,0.00013698,2]
[332806869,1721538643251,-500.0,0.00013698,2]
[332806870,1721538643261,-500.0,0.00013698,2]
[332806871,1721538643272,-500.0,0.00013698,2]
[332806872,1721538643283,-500.0,0.00013698,2]
[332806873,1721538643293,-502.0283174,0.00013698,2]
[332806874,1721538643303,-500.0,0.00013698,2]
[332806875,1721538643313,-500.0,0.00013698,2]
[332806876,1721538643324,-522.19846751,0.00013698,2]
[332806877,1721538643334,-503.64244037,0.00013698,2]
[332806878,1721538643345,-500.0,0.00013698,2]
[332806879,1721538643357,-500.0,0.00013698,2]
[332806881,1721538643367,-1836.33,0.00013698,2]
[332806882,1721538643378,-437.67194213,0.00013698,2]
[332806883,1721538643388,-2282.34,0.00013698,2]
[332806884,1721538643400,-1895.26,0.00013698,2]
[332806885,1721538643411,-500.0,0.00013698,2]
[332806886,1721538643421,-500.0,0.00013698,2]
[332806887,1721538643431,-500.0,0.00013698,2]
[332806888,1721538643441,-500.0,0.00013698,2]
[332806889,1721538643450,-500.0,0.00013698,2]
[332806890,1721538643460,-1055.7,0.00013698,2]
[332806891,1721538643471,-500.0,0.00013698,2]
[332806892,1721538643480,-500.0,0.00013698,2]
[332806893,1721538643490,-500.0,0.00013698,2]
[332806894,1721538643502,-500.0,0.00013698,2]
[332806895,1721538643513,-500.0,0.00013698,2]
[332806896,1721538643524,-2021.04,0.00013698,2]
[332806898,1721538643534,-500.0,0.00013698,2]
[332806900,1721538643543,-500.42433486,0.00013698,2]
[332806901,1721538643553,-500.0,0.00013698,2]
[332806902,1721538643564,-500.0,0.00013698,2]
[332806903,1721538643576,-500.0,0.00013698,2]
[332806905,1721538643587,-500.0,0.00013698,2]
[332806906,1721538643598,-672.79,0.00013698,2]
[332806907,1721538643609,-500.81339104,0.00013698,2]
[332806908,1721538643620,-500.0,0.00013698,2]
[332806909,1721538643630,-500.0,0.00013698,2]
[332806910,1721538643639,-1988.62,0.00013698,2]
[332806911,1721538643649,-633.18,0.00013698,2]
[332806912,1721538643658,-500.0,0.00013698,2]
[332806913,1721538643669,-3122.49,0.00013698,2]
[332806914,1721538643680,-534.93,0.00013698,2]
[332806915,1721538643689,-780.96,0.00013698,2]
[332806916,1721538643699,-271.74760283,0.00013698,2]
[332806917,1721538643708,-548.43,0.00013698,2]
[332806918,1721538643717,-574.71,0.00013698,2]
[332806919,1721538643728,-500.0,0.00013698,2]
[332806920,1721538643738,-500.0,0.00013698,2]
[332806921,1721538643748,-500.0,0.00013698,2]
[332806922,1721538643760,-1221.06,0.00013698,2]
[332806923,1721538643771,-7539.47,0.00013698,2]
[332806924,1721538643780,-525.86400659,0.00013698,2]
[332806925,1721538643790,-500.0,0.00013698,2]
[332806926,1721538643800,-500.0,0.00013698,2]
[332806927,1721538643810,-500.0,0.00013698,2]
[332806928,1721538643821,-764.43,0.00013698,2]
[332806929,1721538643832,-500.0,0.00013698,2]
[332806930,1721538643842,-500.0,0.00013698,2]
[332806931,1721538643851,-500.0,0.00013698,2]
[332806932,1721538643861,-548.9,0.00013698,2]
[332806933,1721538643871,-500.0,0.00013698,2]
[332806935,1721538643880,-836.06,0.00013698,2]
[332806936,1721538643890,-501.5162643,0.00013698,2]
[332806937,1721538643899,-1370.58,0.00013698,2]
[332806939,1721538643909,-500.0,0.00013698,2]
[332806941,1721538643919,-2495.28,0.00013698,2]
[332806942,1721538643929,-500.0,0.00013698,2]
[332806943,1721538643938,-500.0,0.00013698,2]
[332806944,1721538643947,-500.0,0.00013698,2]
[332806945,1721538643957,-500.0,0.00013698,2]
[332806946,1721538643966,-500.0,0.00013698,2]
[332806947,1721538643976,-500.0,0.00013698,2]
[332806948,1721538643985,-500.0,0.00013698,2]
[332806949,1721538643994,-500.0,0.00013698,2]
[332806950,1721538644004,-500.0,0.00013698,2]
[332806951,1721538644014,-500.0,0.00013698,2]
[332806952,1721538644023,-500.0,0.00013698,2]
[332806953,1721538644033,-501.1334757,0.00013698,2]
[332806954,1721538644042,-500.0,0.00013698,2]
[332806955,1721538644052,-500.0,0.00013698,2]
[332806956,1721538644061,-5625.7,0.00013698,2]
[332806957,1721538644071,-595.3,0.00013698,2]
[332806958,1721538644080,-2765.09,0.00013698,2]
[332806959,1721538644089,-500.0,0.00013698,2]
[332806960,1721538644098,-1714.2,0.00013698,2]
[332806961,1721538644111,-500.0,0.00013698,2]
[332806962,1721538644120,-500.0,0.00013698,2]
[332806963,1721538644130,-513.23170006,0.00013698,2]
[332806964,1721538644140,-500.0,0.00013698,2]
[332806965,1721538644149,-338.59133291,0.00013698,2]
[332806966,1721538644159,-1407.54,0.00013698,2]
[332806967,1721538644168,-17308.74,0.00013698,2]
[332806968,1721538644178,-500.0,0.00013698,2]
[332806969,1721538644189,-500.0,0.00013698,2]
[332806970,1721538644200,-502.90682651,0.00013698,2]
[332806971,1721538644212,-500.0,0.00013698,2]
[332806972,1721538644222,-500.0,0.00013698,2]
[332806973,1721538644231,-500.0,0.00013698,2]
[332806974,1721538644242,-500.0,0.00013698,2]
[332806975,1721538644253,-558.09,0.00013698,2]
[332806976,1721538644264,-1031.92,0.00013698,2]
[332806977,1721538644273,-500.0,0.00013698,2]
[332806978,1721538644283,-500.0,0.00013698,2]
[332806979,1721538644293,-944.78,0.00013698,2]
[332806980,1721538644302,-500.0,0.00013698,2]
[332806981,1721538644311,-500.0,0.00013698,2]
[332806982,1721538644321,-690.88,0.00013698,2]
[332806983,1721538644332,-501.5293362,0.00013698,2]
[332806984,1721538644342,-2856.26,0.00013698,2]
[332806985,1721538644352,-508.74971259,0.00013698,2]
[332806986,1721538644361,-2118.98,0.00013698,2]
[332806987,1721538644371,-500.0,0.00013698,2]
[332806988,1721538644382,-500.0,0.00013698,2]
[332806989,1721538644393,-500.0,0.00013698,2]
[332806990,1721538644402,-500.0,0.00013698,2]
[332806991,1721538644412,-857.4,0.00013698,2]
[332806992,1721538644422,-500.0,0.00013698,2]
[332806993,1721538644432,-500.0,0.00013698,2]
[332806994,1721538644443,-500.0,0.00013698,2]
[332806995,1721538644453,-500.0,0.00013698,2]
[332806996,1721538644465,-500.0,0.00013698,2]
[332806997,1721538644476,-500.0,0.00013698,2]
[332806998,1721538644485,-500.0,0.00013698,2]
[332806999,1721538644494,-519.48229262,0.00013698,2]
[332807000,1721538644505,-5252.85,0.00013698,2]
[332807001,1721538644515,-614.77,0.00013698,2]
[332807002,1721538644527,-500.0,0.00013698,2]
[332807003,1721538644538,-500.0,0.00013698,2]
[332807004,1721538644547,-500.0,0.00013698,2]
[332807005,1721538644559,-500.0,0.00013698,2]
[332807006,1721538644571,-500.0,0.00013698,2]
[332807007,1721538644582,-500.0,0.00013698,2]
[332807008,1721538644593,-457.76178401,0.00013698,2]
[332807009,1721538644604,-2362.98912192,0.00013698,2]
[332807011,1721538646271,-8394.28087808,0.00013698,2]
[332807012,1721538646280,-3059.9,0.00013698,2]
[332807013,1721538646291,-500.0,0.00013698,2]
[332807014,1721538646303,-506.96922315,0.00013698,2]
[332807015,1721538646314,-508.05205072,0.00013698,2]
[332807016,1721538646324,-3362.84,0.00013698,2]
[332807017,1721538646333,-500.0,0.00013698,2]
[332807018,1721538646343,-500.0,0.00013698,2]
[332807019,1721538646353,-1969.99,0.00013698,2]
[332807020,1721538646363,-503.22469802,0.00013698,2]
[332807021,1721538646372,-500.0,0.00013698,2]
[332807022,1721538646383,-546.61,0.00013698,2]
[332807023,1721538646394,-500.0,0.00013698,2]
[332807024,1721538646403,-504.64998532,0.00013698,2]
[332807025,1721538646415,-2375.84,0.00013698,2]
[332807026,1721538646425,-7233.67,0.00013698,2]
[332807027,1721538646437,-1174.89,0.00013698,2]
[332807028,1721538646447,-1257.69,0.00013698,2]
[332807029,1721538646458,-577.04,0.00013698,2]
[332807030,1721538646470,-500.0,0.00013698,2]
[332807031,1721538646480,-500.0,0.00013698,2]
[332807032,1721538646490,-500.0,0.00013698,2]
[332807033,1721538646500,-1073.94,0.00013698,2]
[332807034,1721538646509,-500.0,0.00013698,2]
[332807035,1721538646519,-500.0,0.00013698,2]
[332807036,1721538646529,-509.6950994,0.00013698,2]
[332807037,1721538646539,-500.0,0.00013698,2]
[332807038,1721538646549,-500.0,0.00013698,2]
[332807039,1721538646557,-500.0,0.00013698,2]
[332807040,1721538646567,-500.0,0.00013698,2]
[332807041,1721538646576,-500.0,0.00013698,2]
[332807042,1721538646586,-1048.19,0.00013698,2]
[332807043,1721538646595,-500.0,0.00013698,2]
[332807044,1721538646605,-500.0,0.00013698,2]
[332807045,1721538646614,-1014.75,0.00013698,2]
[332807046,1721538646624,-500.0,0.00013698,2]
[332807047,1721538646633,-500.0,0.00013698,2]
[332807048,1721538646644,-500.0,0.00013698,2]
[332807049,1721538646654,-4564.62,0.00013698,2]
[332807050,1721538646663,-952.43,0.00013698,2]
[332807051,1721538646673,-500.0,0.00013698,2]
[332807052,1721538646683,-586.78,0.00013698,2]
[332807053,1721538646695,-4683.45,0.00013698,2]
[332807054,1721538646705,-500.0,0.00013698,2]
[332807055,1721538646715,-500.0,0.00013698,2]
[332807056,1721538646728,-500.0,0.00013698,2]
[332807057,1721538646738,-500.0,0.00013698,2]
[332807058,1721538646747,-500.0,0.00013698,2]
[332807059,1721538646757,-796.16,0.00013698,2]
[332807060,1721538646767,-820.98,0.00013698,2]
[332807061,1721538646777,-500.0,0.00013698,2]
[332807062,1721538646786,-500.0,0.00013698,2]
[332807063,1721538646795,-1246.68,0.00013698,2]
[332807064,1721538646805,-500.0,0.00013698,2]
[332807065,1721538646815,-870.11,0.00013698,2]
[332807066,1721538646825,-500.0,0.00013698,2]
[332807067,1721538646835,-1856.22,0.00013698,2]
[332807068,1721538646844,-500.0,0.00013698,2]
[332807069,1721538646855,-500.0,0.00013698,2]
[332807070,1721538646865,-1229.65,0.00013698,2]
[332807071,1721538646875,-501.43167891,0.00013698,2]
[332807072,1721538646884,-500.0,0.00013698,2]
[332807073,1721538646894,-342.38173091,0.00013698,2]
[332807074,1721538646904,-500.0,0.00013698,2]
[332807075,1721538646914,-500.0,0.00013698,2]
[332807076,1721538646923,-500.0,0.00013698,2]
[332807077,1721538646933,-2093.45,0.00013698,2]
[332807078,1721538646942,-500.0,0.00013698,2]
[332807079,1721538646952,-500.0,0.00013698,2]
[332807080,1721538646962,-1457.0,0.00013698,2]
[332807081,1721538646972,-1830.32,0.00013698,2]
[332807082,1721538646981,-500.0,0.00013698,2]
[332807083,1721538646991,-500.0,0.00013698,2]
[332807084,1721538647001,-1012.27,0.00013698,2]
[332807085,1721538647010,-649.58,0.00013698,2]
[332807086,1721538647020,-500.0,0.00013698,2]
[332807087,1721538647030,-2774.36,0.00013698,2]
[332807088,1721538647039,-500.0,0.00013698,2]
[332807089,1721538647049,-1087.81,0.00013698,2]
[332807090,1721538647059,-655.76,0.00013698,2]
[332807091,1721538647069,-2899.31,0.00013698,2]
[332807092,1721538647078,-500.0,0.00013698,2]
[332807093,1721538647088,-814.01,0.00013698,2]
[332807094,1721538647099,-500.0,0.00013698,2]
[332807095,1721538647112,-500.0,0.00013698,2]
[332807096,1721538647122,-500.0,0.00013698,2]
[332807097,1721538647131,-501.33225345,0.00013698,2]
[332807098,1721538647141,-500.0,0.00013698,2]
[332807099,1721538647152,-185.12499059,0.00013698,2]
[332807100,1721538647162,-500.0,0.00013698,2]
[332807101,1721538647172,-500.0,0.00013698,2]
[332807102,1721538647184,-500.0,0.00013698,2]
[332807103,1721538647194,-2691.93,0.00013698,2]
[332807104,1721538647203,-501.12268419,0.00013698,2]
[332807105,1721538647213,-990.29,0.00013698,2]
[332807106,1721538647223,-500.0,0.00013698,2]
[332807107,1721538647233,-500.0,0.00013698,2]
[332807108,1721538647243,-513.64982428,0.00013698,2]
[332807109,1721538647253,-500.0,0.00013698,2]
[332807110,1721538647264,-2464.77,0.00013698,2]
[332807111,1721538647273,-1042.52,0.00013698,2]
[332807112,1721538647283,-500.0,0.00013698,2]
[332807113,1721538647292,-506.1306222,0.00013698,2]
[332807114,1721538647303,-500.0,0.00013698,2]
[332807115,1721538647313,-1189.51,0.00013698,2]
[332807116,1721538647323,-500.0,0.00013698,2]
[332807117,1721538647335,-500.0,0.00013698,2]
[332807118,1721538647345,-500.0,0.00013698,2]
[332807119,1721538647355,-11744.73,0.00013698,2]
[332807120,1721538647365,-551.81,0.00013698,2]
[332807121,1721538647375,-1405.72,0.00013698,2]
[332807122,1721538647385,-500.0,0.00013698,2]
[332807123,1721538647396,-893.44,0.00013698,2]
[332807124,1721538647406,-500.0,0.00013698,2]
[332807125,1721538647416,-26251.42,0.00013698,2]
[332807126,1721538647426,-1619.46,0.00013698,2]
[332807127,1721538647437,-1619.46,0.00013698,2]
[332807128,1721538647447,-500.0,0.00013698,2]
[332807129,1721538647457,-897.72,0.00013698,2]
[332807130,1721538647466,-1619.46,0.00013698,2]
[332807131,1721538647476,-1619.46,0.00013698,2]
[332807132,1721538647486,-1619.46,0.00013698,2]
[332807133,1721538647503,-1619.46,0.00013698,2]
[332807134,1721538647523,-1619.46,0.00013698,2]
[332807135,1721538647558,-1619.46,0.00013698,2]
[332807136,1721538647624,-500.0,0.00013698,2]
[332807137,1721538647695,-1619.46,0.00013698,2]
[332807138,1721538647803,-1619.46,0.00013698,2]
[332807139,1721538647869,-1619.46,0.00013698,2]
[332807140,1721538647925,-1619.46,0.00013698,2]
[332807141,1721538648025,-1619.46,0.00013698,2]
[332807142,1721538648154,-500.0,0.00013698,2]
[332807143,1721538648251,-500.0,0.00013698,2]
[332807144,1721538648324,-500.0,0.00013698,2]
[332807145,1721538648351,-500.0,0.00013698,2]
[332807146,1721538648362,-2216.47,0.00013698,2]
[332807147,1721538648372,-502.14615165,0.00013698,2]
[332807148,1721538648383,-500.0,0.00013698,2]